Cogmind - Beta 16 @@@ ROGUE MODE // 2025.10.31 @ 06:06:17 Player: beans Result: Destroyed by Y-45 Defender with Beam Rifle Performance ------------- Evolutions (1) 500 Regions Visited (4) 800 Robots Destroyed (14) 70 Value Destroyed (328) 328 Prototype IDs (0) 0 Alien Tech Used (0) 0 Bonus (0) 0 TOTAL SCORE: 1698 Bonus ------- None Cogmind --------- Core Integrity 0/400 Matter 253/300 Energy 99/100 System Corruption 0% Temperature Cool (9) Movement Core (100) Ox1 Location -9/Recycling Parts ------- > --- POWER (1) -------- (None) > --- PROPULSION (2) --- (None) > --- UTILITY (4) ------ Transport Network Coupler > --- WEAPON (2) ------- Particle Gun Assault Rifle > --- INVENTORY (5) ---- Terrain Scan Processor Peak State ------------ > --- POWER ------------ (None) > --- PROPULSION ------- Aluminum Leg Aluminum Leg > --- UTILITY ---------- Improved Heat Sink > --- WEAPON ----------- Particle Gun Light Assault Rifle > --- INVENTORY -------- Light Assault Rifle [Rating: 8] Favorites ----------- Power None Propulsion Aluminum Leg Leg Aluminum Leg Utility Transport Network Coupler Device Improved Heat Sink Processor Transport Network Coupler Weapon Light Cannon Energy Gun Particle Gun Ballistic Gun Light Assault Rifle Ballistic Cannon Light Cannon Build | -11 -10 -9 -9 -9 ------- Run | Yrd Mat Mat Sto Rec Slots Evolved 2 | . . 2 . . Power . | . . . . . Propulsion . | . . . . . Utility 2 | . . 2 . . Weapon . | . . . . . Parts Attached 10 | 4 5 . . 1 Power . | . . . . . Engine . | . . . . . Core . | . . . . . Reactor . | . . . . . Propulsion 2 | 2 . . . . Treads . | . . . . . Leg 2 | 2 . . . . Wheel . | . . . . . Hover . | . . . . . Flight . | . . . . . Utility 2 | . 2 . . . Device 1 | . 1 . . . Storage . | . . . . . Processor 1 | . 1 . . . Hackware . | . . . . . Protection . | . . . . . Artifact . | . . . . . Weapon 6 | 2 3 . . 1 Energy Gun 1 | . 1 . . . Energy Cannon . | . . . . . Ballistic Gun 3 | 2 . . . 1 Ballistic Cannon 2 | . 2 . . . Launcher . | . . . . . Special Weapon . | . . . . . Impact Weapon . | . . . . . Slashing Weapon . | . . . . . Piercing Weapon . | . . . . . Special Melee Weapon . | . . . . . Unidentified Prototypes . | . . . . . Parts Lost 7 | . . . 7 . Power . | . . . . . Propulsion 2 | . . . 2 . Utility 1 | . . . 1 . Weapon 4 | . . . 4 . Highest Loss Streak 7 | . . . 7 . To Critical Strikes . | . . . . . Average Backups 1 | . 1 3 1 . Power . | . . . . . Propulsion . | . . . . . Utility . | . . . . . Weapon 1 | . 1 3 1 . Tool/Special . | . . . . . Unused Backups 1 | . . . . 1 Power . | . . . . . Propulsion . | . . . . . Utility 1 | . . . . 1 Weapon . | . . . . . Tool/Special . | . . . . . Average Slot Usage (%) 49 | . 73 66 36 27 Leg 14 | . 28 22 7 . Device 5 | . 10 11 3 . Processor 9 | . 5 11 11 11 Energy Gun 4 | . 2 . 4 11 Ballistic Gun 5 | . 9 . 3 5 Ballistic Cannon 10 | . 15 22 7 . Peak Build Rating 8 | 4 8 8 8 4 Average Rating 5 | 3 6 8 4 3 On Entrance 4 | . 4 8 8 3 Avg Prop Armor Cover (%) . | . . . . . Naked Turns . | . . . . . Heaviest Build 7 | 2 7 7 7 5 Greatest Support 20 | 20 20 20 20 3 Greatest Overweight (x) 1 | . . . . 1 Average Overweight (x) . | . . . . . Largest Inventory Capacity 5 | 5 5 5 5 5 Average Capacity 5 | 5 5 5 5 5 Most Carried 4 | 4 4 3 3 1 Average Carried 1 | . 1 3 1 . Final Capacity 5 | 5 5 5 5 5 Final Carried 3 | . 3 3 . 1 Class Distribution -------------------- 100% | Mutant Dominant Class ---------------- Mutant | -10/Materials Mutant | -9/Materials Mutant | -9/Storage Mutant | -9/Recycling Resources | -11 -10 -9 -9 -9 ----------- Run | Yrd Mat Mat Sto Rec Matter Collected 484 | 174 235 24 51 . Remotely . | . . . . . Salvage Created 427 | . 301 43 83 . Parts 33 | . 26 3 4 . Haulers Intercepted 2 | . 2 . . . Recyclers Shooed 2 | . 2 . . . Parts Field Recycled . | . . . . . Retrieved Matter . | . . . . . Parts Self-Destructed . | . . . . . Prevented . | . . . . . Parts Restored . | . . . . . Kills | -11 -10 -9 -9 -9 ------- Run | Yrd Mat Mat Sto Rec Combat Hostiles Destroyed 10 | . 7 1 2 . Guns 4 | . 2 . 2 . Cannons 6 | . 5 1 . . Classes Destroyed 6 | . 5 1 . . Worker 1 | . 1 . . . Tunneler 1 | . 1 . . . Hauler 2 | . 2 . . . Swarmer 3 | . 3 . . . Grunt 5 | . 4 . 1 . Sentry 2 | . . 1 1 . Best Kill Streak 5 | . 5 1 2 . Combat Bots Only 5 | . 5 1 2 . Max Kills in Single Turn 2 | . 2 1 1 . Gunslinging . | . . . . . Exploded . | . . . . . Melee . | . . . . . Uniques/NPCs Destroyed . | . . . . . Combat | -11 -10 -9 -9 -9 -------- Run | Yrd Mat Mat Sto Rec Hostile Shots Fired 124 | . 39 6 76 3 Missed 38 | . 17 1 20 . Hits 86 | . 22 5 56 3 Projectile 86 | . 22 5 56 3 Critical Strikes 1 | . . . 1 . Damage Taken 1184 | . 261 82 801 40 Core 469 | . 60 31 352 26 Absorbed by Shields . | . . . . . Core Remaining (%) 88 | 100 76 . . . Volleys Fired 66 | 1 28 3 34 . Largest 2 | 2 2 2 2 . Hottest 85 | 40 85 60 65 . Shots Fired 115 | 2 56 6 51 . Gun 67 | 2 32 . 33 . Cannon 48 | . 24 6 18 . Launcher . | . . . . . Special . | . . . . . Kinetic 92 | 2 45 6 39 . Thermal 23 | . 11 . 12 . Explosive . | . . . . . Electromagnetic . | . . . . . Robot Hit Streak 11 | 1 8 2 11 . Robot Miss Streak 3 | 1 3 2 1 . Penetration Max . | . . . . . Secondary Targets . | . . . . . Shots Hit Robots 68 | 1 35 3 29 . Core Hits 25 | . 19 1 5 . Critical Kills . | . . . . . Critical Parts Destroyed . | . . . . . Critical Strikes 1 | . 1 . . . Blast 1 | . 1 . . . Melee Attacks . | . . . . . Impact . | . . . . . Slashing . | . . . . . Piercing . | . . . . . Sneak Attacks . | . . . . . Combat Hostiles . | . . . . . Follow-up Attacks . | . . . . . Damage Inflicted 916 | 6 499 52 359 . Guns 400 | 6 243 . 151 . Cannons 516 | . 256 52 208 . Explosions . | . . . . . Melee . | . . . . . Ramming . | . . . . . Kinetic 820 | 6 403 52 359 . Thermal 96 | . 96 . . . Explosive . | . . . . . Electromagnetic . | . . . . . Impact . | . . . . . Slashing . | . . . . . Piercing . | . . . . . Highest Corruption . | . . . . . Average Corruption . | . . . . . Corruption Purged . | . . . . . Corruption Blocked . | . . . . . Overload Shots . | . . . . . Overflow Damage . | . . . . . Projectiles . | . . . . . Explosions . | . . . . . Melee . | . . . . . Knockbacks 2 | . 2 . . . Impact . | . . . . . Kinetic 2 | . 2 . . . Secondary . | . . . . . Self-Inflicted Damage . | . . . . . Shots . | . . . . . Rammed . | . . . . . Targets Rammed . | . . . . . Kicked . | . . . . . Crushed . | . . . . . Highest Temperature 96 | . 18 . 96 . Average Temperature 25 | . 6 . 38 . Received Heat Transfer 426 | . 123 18 267 18 Siege Activations . | . . . . . Martial Activations . | . . . . . Shielding Activations . | . . . . . Robots Disrupted . | . . . . . Combat Hostiles . | . . . . . Robots Corrupted . | . . . . . Combat Hostiles . | . . . . . Parts Fried . | . . . . . Impact Corruptions . | . . . . . Robots Melted . | . . . . . Combat Hostiles . | . . . . . Parts Melted . | . . . . . Heat Transferred 222 | . 222 . . . Parts Sabotaged . | . . . . . Parts Stolen . | . . . . . Parts Stripped . | . . . . . Power Chain Reactions . | . . . . . Alert | -11 -10 -9 -9 -9 ------- Run | Yrd Mat Mat Sto Rec Maximum Alert Level . | . . . . . Low Security (%) 100 | 100 100 100 100 100 Level 1 . | . . . . . Level 2 . | . . . . . Level 3 . | . . . . . Level 4 . | . . . . . Level 5 . | . . . . . High Security . | . . . . . Max Security . | . . . . . Peak Influence 114 | . 114 45 50 9 Initial 35 | . . 35 14 9 Average 20 | . 39 31 15 . Influence Increases 329 | . 194 30 105 . Destroy 0b10 Robot/C 200 | . 140 20 40 . Destroy 0b10 Robot/NC 20 | . 20 . . . Destroy Leader 64 | . 34 10 20 . Lose Combat Pursuer 45 | . . . 45 . Influence Decreases 329 | . 110 79 115 25 Entered New Map 86 | . . 49 21 16 Time Decay 223 | . 110 30 74 9 Lost Part 20 | . . . 20 . Squads Dispatched 3 | . . . 3 . Investigation . | . . . . . Extermination . | . . . . . Reinforcement 1 | . . . 1 . Assault . | . . . . . Garrison 2 | . . . 2 . Intercept . | . . . . . Searches Triggered . | . . . . . Construction Impeded . | . . . . . Haulers Reinforced . | . . . . . Active Scanning Responses . | . . . . . Cargo Convoy Interrupts . | . . . . . Stealth | -11 -10 -9 -9 -9 --------- Run | Yrd Mat Mat Sto Rec Distress Signals 1 | . 1 . . . Communications Jammed . | . . . . . Distress Signals . | . . . . . Times Spotted 25 | . 10 1 13 1 Peak Tracking Total 10 | . 5 1 10 1 Tactical Retreats 1 | . . . 1 . Traps | -11 -10 -9 -9 -9 ------- Run | Yrd Mat Mat Sto Rec Traps Triggered . | . . . . . Indirectly . | . . . . . Trap Hack Attempts . | . . . . . Triggered . | . . . . . Disarmed . | . . . . . Reprogrammed . | . . . . . Reused . | . . . . . Traps Extracted . | . . . . . Installed . | . . . . . Triggered . | . . . . . Machines | -11 -10 -9 -9 -9 ---------- Run | Yrd Mat Mat Sto Rec Machines Disabled . | . . . . . Max in Single Turn . | . . . . . Machines Repaired . | . . . . . Machines Dismantled . | . . . . . Machines Sabotaged . | . . . . . Overloaded Fab Kills . | . . . . . Hacking | -11 -10 -9 -9 -9 --------- Run | Yrd Mat Mat Sto Rec Machines Accessed . | . . . . . Terminals . | . . . . . Fabricators . | . . . . . Repair Stations . | . . . . . Recycling Units . | . . . . . Scanalyzers . | . . . . . Garrison Access . | . . . . . Total Hacks . | . . . . . Successful . | . . . . . Failed . | . . . . . Catastrophic . | . . . . . Database Lockouts . | . . . . . Manual 1 | . . . 1 . Terminals . | . . . . . Fabricators . | . . . . . Repair Stations . | . . . . . Recycling Units . | . . . . . Scanalyzers . | . . . . . Garrison Access . | . . . . . Terminal Hacks . | . . . . . Fabricator Hacks . | . . . . . Repair Station Hacks . | . . . . . Recycling Unit Hacks . | . . . . . Scanalyzer . | . . . . . Garrison Access Hacks . | . . . . . Unauthorized Hacks . | . . . . . Terminals . | . . . . . Fabricators . | . . . . . Repair Stations . | . . . . . Recycling Units . | . . . . . Scanalyzers . | . . . . . Garrison Access . | . . . . . Data Cores Recovered . | . . . . . Used . | . . . . . Hacking Detections . | . . . . . Full Trace Events . | . . . . . Feedback Events . | . . . . . Feedback Blocked . | . . . . . Robot Schematics Acquired . | . . . . . Robots Built . | . . . . . Authchips . | . . . . . Time . | . . . . . Total Robot Build Rating . | . . . . . Part Schematics Acquired . | . . . . . Parts Built . | . . . . . Authchips . | . . . . . Time . | . . . . . Total Part Build Rating . | . . . . . Part Studies Acquired . | . . . . . Parts Repaired . | . . . . . Time . | . . . . . Parts Recycled . | . . . . . Recycled Matter . | . . . . . Retrieved Matter . | . . . . . Retrieved Components . | . . . . . Parts Scanalyzed . | . . . . . Part Schematics Acquired . | . . . . . Parts Damaged . | . . . . . Bothacking | -11 -10 -9 -9 -9 ------------ Run | Yrd Mat Mat Sto Rec Used RIF Installer . | . . . . . Robots Hacked . | . . . . . Non-combat . | . . . . . Combat . | . . . . . Robot Hacks Applied . | . . . . . Relay Couplers Released . | . . . . . Fabnet Peak Effective % . | . . . . . Robots Rewired . | . . . . . Allies Hacked . | . . . . . Hacks Repelled . | . . . . . Allies | -11 -10 -9 -9 -9 -------- Run | Yrd Mat Mat Sto Rec Total Allies . | . . . . . Largest Group . | . . . . . Highest-Rated Group . | . . . . . Highest-Rated Ally . | . . . . . Total Orders . | . . . . . Ally Attacks . | . . . . . Total Damage . | . . . . . Kills . | . . . . . Allies Corrupted . | . . . . . Allies Melted . | . . . . . Intel | -11 -10 -9 -9 -9 ------- Run | Yrd Mat Mat Sto Rec Active Infowar (turns) 596 | . 112 71 231 182 T.N.C. 596 | . 112 71 231 182 Robot Analysis Total . | . . . . . Derelict Logs Recovered . | . . . . . Drone Launches . | . . . . . Drone Recoveries . | . . . . . Exploration | -11 -10 -9 -9 -9 ------------- Run | Yrd Mat Mat Sto Rec Turns Passed 797 | 53 260 71 231 182 Spaces Moved 678 | 41 134 52 184 267 Core 422 | 10 . . 145 267 Treads . | . . . . . Legs 256 | 31 134 52 39 . Wheels . | . . . . . Hover . | . . . . . Flight . | . . . . . Fastest Speed 50 | 50 120 120 50 50 Average Speed 83 | 102 120 120 64 67 Slowest Speed 120 | 120 120 120 120 100 Overloaded Moves . | . . . . . Propulsion Burnouts . | . . . . . Robots Hopped . | . . . . . Potential Cave-ins . | . . . . . Cave-ins Triggered . | . . . . . Exploration Rate (%) 20 | 3 27 6 22 44 Regions Visited 4 Branch Regions 2 Pre-discovered Areas . | . . . . . Known Exits Taken . | . . . . . Unknown Exits Taken 4 | 1 1 1 1 . Scrap Searched . | . . . . . Spaces Dug . | . . . . . Terrain Destroyed . | . . . . . Melee . | . . . . . Projectile . | . . . . . AOE . | . . . . . Terrain Rammed . | . . . . . Walls Destroyed . | . . . . . Machines Disabled . | . . . . . Actions | -11 -10 -9 -9 -9 --------- Run | Yrd Mat Mat Sto Rec Total 802 | 50 180 54 248 270 Wait 38 | 1 9 . 28 . Move 674 | 40 133 51 183 267 Hop . | . . . . . Pick Up 11 | 4 5 . . 2 Fast Attach . | . . . . . Attach 10 | 4 2 . 3 1 Detach . | . . . . . Swap 3 | . 3 . . . Drop . | . . . . . Fire 66 | 1 28 3 34 . Melee . | . . . . . Ram . | . . . . . Kick . | . . . . . Crush . | . . . . . Escape Stasis . | . . . . . Rewire . | . . . . . Trap . | . . . . . Miscellaneous . | . . . . . Route ------- -11/Scrapyard -10/Materials -9/Materials -9/Storage -9/Recycling (discovered 1 exit: [*Fac]) History --------- Turn | Location | Event 2 | -11/Scrapyard | Met Revision 17 6 | -11/Scrapyard | Discovered new exit (range 16) 54 | -11/Scrapyard | Entered Materials 250 | -10/Materials | Discovered new exit (range 4) 314 | -10/Materials | Entered another Materials area 314 | -9/Materials | Evolved 2 slots: Utility x2 318 | -9/Materials | Build established: Mutant 355 | -9/Materials | Discovered new exit (range 12) 385 | -9/Materials | Entered Storage 467 | -9/Storage | Garrison activated, responded to threat 499 | -9/Storage | Core integrity fell below 50% 530 | -9/Storage | Lost 7 parts (2n1u4w) 578 | -9/Storage | Core integrity fell below 20% 614 | -9/Storage | Used back door to open Recycling access 614 | -9/Storage | Discovered new exit (range 5) 616 | -9/Storage | Entered Recycling 674 | -9/Recycling | Discovered new exit (range 11) 798 | -9/Recycling | Destroyed by Y-45 Defender with Beam Rifle Last Messages --------------- Y-45 Defender destroyed. Lgt. Assault Rifle destroyed. Critical hit (Burn: +37). K-01 Serf collects debris. Acquired 35 matter. Acquired 9 matter. K-01 Serf collects debris. Acquired 7 matter. Connecting with Door Terminal... Current location identified: Storage Access granted. >>\\IAMDERELICT Access granted. EXIT=FOUND LOCATION=UNKNOWN GOAL=ESCAPE EXIT=FOUND Acquired Assault Rifle. Acquired Terrain Scan Processor. Y-45 Defender springs to life. Map ----- +----------------------------------------------------+ | ??# #???????????????????????##?????????????? | | ??# < #??????????????######### ####??##?###### | | ??# #??????????????# #??# ? | | ??# #??????????????# #??# | | ??# #??????????????# #??# """ """ | | ??# #????????####### #??# """ """ | | ??# ########## # #??# """ """ | | ??# # #??# | | ??# + #### """ """ | | ??# # ##"" """ """ | | ??## ###### #### # ##"Y """ """ | | ???# #????# #??####### ##"" | | ??##+###### #?###????# #??# | | ??# # ### ###??# #??# | | ??# # # #??##############??#+####### | | ??# # # #??????????????????# #?????? | | ?## # # #################### ### #"Y | | ?# # # + | | ?## # # ########### | | ??# # # #?????????# | | ??# ! # # #???####??# | | ??# # # ###?! !#??# | | ??# #r###+###Y##!!!#### | | ??# # r | | ??# + ######### | | ??# # @ r#???????? | | ??# ###+#+#########+###### #????????? | | ??# #?# #????????????# #????????? | | ??# !#?# #????????????# #????????? | | ??# #?# #???????????? #????????? | | ??# #?# #????????????# #????????? | | ??# #?# #????????????# #????????? | | ?? #?# #????????????? ?????????? | | ?## % #?# #??????????????????????????? | | ??#########?# #??????????????????????????? | | ????????????# #??????????????????????????? | | ????????????# #??????????????????????????? | | ????????????# #??????????????????????????? | | ????????????# #??????????????????????????? | | ???????????? #??????????????????????????? | | ????????????# #??????????????????????????? | | ????????????# #??????????????????????????? | | ????????????#######??????????????????????????? | | ?????????????????????????????????????????????? | | ?????????????????????????????????????????????? | | ?????????????????????????????????????????????? | | ?????????????????????????????????????????????? | | ?????????????????????????????????????????????? | | ?????????????????????????????????????????????? | | ?????????????????????????????????????????????? | +----------------------------------------------------+ Best States ------------- Heat Dissipation 42 Energy Generation 5 Energy Capacity 100 Matter Stores 300 Matter Capacity 300 Sight Range 16 Terrain Scan Density 10 Evasion (%) 55 Item Schematics ----------------- None Robot Schematics ------------------ None Fabricated ------------ Nothing Repaired ---------- Nothing Studied --------- None Alien Tech Used ----------------- None Achievements -------------- None Challenges ------------ None Game ------ Seed ShiftBottomlessExoskeleton Manual? 0 Play Time 00:06:16 Cumulative 200.8 hours Start 2025.10.31 @ 06:01:04 End 2025.10.31 @ 06:06:17 Sessions 1 Manual Loads 0 Difficulty Rogue Special Mode None Game No. 588 Rogue 587 Adventurer 1 Explorer 0 Win Type - Total 0 Types 0/0/0/0/0/0/0/0/0/0 Lore% 64 Gallery% 60 Achievement% 34 Wizard Run 0 Options --------- Layout 1 ASCII 0 Keyboard 0 Movement Mouse Keybinds 0 Fullscreen 1 Font 24/Smallcaps Map View 50x35 Zoom Use 0% Tactical HUD 0 Map Filters NONE Filters NONE Steam 1 RUN: 37ac3f04-e46e-4e44-ab0b-edef7e54cb23